bitfinex/quotes_SOLUSD_20230111
["timestamp","ask_amount","ask_price","bid_price","bid_amount"]
[1673451319271,0.96,15.587,15.575,69.2103599]
[1673451319484,48.12,15.588,15.575,69.2103599]
[1673451319694,48.12,15.588,15.577,63.65]
[1673451320642,19.14496728,15.587,15.575,5.5603599]
[1673451320858,18.58,15.58,15.575,5.5603599]
[1673451321465,21.92,15.579,15.575,5.5603599]
[1673451321696,20.0,15.578,15.575,5.5603599]
[1673451321893,0.96,15.577,15.575,5.5603599]
[1673451322103,0.96,15.576,15.575,5.5603599]
[1673451322313,1.92,15.576,15.575,0.0003599]
[1673451322524,20.0,15.575,15.568,63.65]
[1673451322734,1.92,15.574,15.568,63.65]
[1673451322944,50.09,15.574,15.568,63.65]
[1673451323151,40.0,15.595,15.567,14.93868627]
[1673451323361,18.68,15.58,15.568,36.12]
[1673451323991,20.0,15.578,15.567,14.93868627]
[1673451324196,20.0,15.578,15.567,14.43868627]
[1673451324428,0.84820199,15.576,15.567,14.43868627]
[1673451324836,48.16,15.575,15.567,14.43868627]
[1673451325039,48.16,15.576,15.567,14.43868627]
[1673451325369,68.15,15.579,15.567,14.43868627]
[1673451325589,40.10496728,15.578,15.567,14.43868627]
[1673451325786,17.96,15.577,15.567,14.43868627]
[1673451326003,20.0,15.575,15.567,14.43868627]
[1673451326206,44.78153,15.574,15.567,14.43868627]
[1673451326405,0.96,15.573,15.567,14.43868627]
[1673451326616,0.96,15.572,15.567,14.43868627]
[1673451326839,20.0,15.57,15.566,151.30533422]
[1673451327059,20.0,15.568,15.566,151.30533422]
[1673451327247,20.0,15.568,15.559,103.06081994]
[1673451327248,19.99466578,15.566,15.559,103.06081994]
[1673451327456,19.99466578,15.566,15.554,104.65631707]
[1673451327457,32.60756299,15.564,15.554,104.65631707]
[1673451327682,1.71745062,15.557,15.554,103.96523421]
[1673451327894,1.7679629,15.555,15.553,73.29519441]
[1673451328099,30.7744381,15.554,15.552,2.08304414]
[1673451328295,235.23792321,15.553,15.533,102.21601803]
[1673451328511,93.46,15.54,15.538,30.28983483]
[1673451328733,31.61856549,15.539,15.538,136.30576162]
[1673451329050,32.57761634,15.539,15.538,30.28983483]
[1673451329246,53.53761634,15.539,15.538,30.28983483]
[1673451329452,100.84761634,15.539,15.538,30.28983483]
[1673451329663,169.95231061,15.539,15.538,111.30576162]
[1673451329894,139.17754582,15.539,15.538,5.28983483]
[1673451330101,139.17754582,15.539,15.535,103.77097742]
[1673451330102,100.85977707,15.539,15.535,103.77097742]
[1673451330297,49.24,15.538,15.533,103.16004095]
[1673451330513,63.0233855,15.538,15.533,103.16004095]
[1673451330849,39.27776875,15.537,15.533,103.16004095]
[1673451331077,1.59721932,15.535,15.533,103.16004095]
[1673451331377,0.96,15.534,15.533,103.16004095]
[1673451331574,1.59721932,15.534,15.533,103.16004095]
[1673451332309,5.87801904,15.537,15.533,103.16004095]
[1673451332522,4.12892738,15.537,15.533,103.16004095]
[1673451333482,58.24051753,15.537,15.533,103.16004095]
[1673451333693,0.91352497,15.537,15.533,103.16004095]
[1673451334101,0.23916562,15.536,15.533,103.16004095]
[1673451334632,0.23916562,15.536,15.532,173.53872134]
[1673451334633,117.33564872,15.535,15.532,173.53872134]
[1673451334842,20.0,15.534,15.532,71.59915443]
[1673451335064,19.14496728,15.534,15.532,71.59915443]
[1673451335256,70.72309429,15.532,15.527,25.734112]
[1673451335473,68.04927151,15.532,15.527,25.734112]
[1673451335997,68.04927151,15.532,15.528,20.0]
[1673451336421,64.9275711,15.532,15.529,17.0]
[1673451336610,0.0075711,15.532,15.529,17.0]
[1673451336819,6.82153,15.537,15.53,20.96]
[1673451337053,417.97011267,15.55,15.532,20.0]
[1673451337262,389.65011267,15.55,15.532,20.0]
[1673451337590,389.65011267,15.55,15.537,0.32181]
[1673451337772,389.65011267,15.55,15.54,28.17]
[1673451337977,389.65011267,15.55,15.541,21.92]
[1673451338188,376.58931267,15.55,15.542,20.0]
[1673451338402,125.54275134,15.55,15.542,20.0]
[1673451338615,125.54275134,15.55,15.543,39.66]
[1673451338838,125.54275134,15.55,15.545,20.0]
[1673451339162,48.18,15.569,15.545,20.0]
[1673451339466,48.18,15.569,15.546,58.79496728]
[1673451339680,140.79,15.56,15.546,39.65]
[1673451339871,87.37496728,15.555,15.543,39.66]
[1673451340088,87.37496728,15.555,15.542,39.66]
[1673451340297,48.23,15.555,15.543,6.89856]
[1673451340507,47.27496728,15.56,15.543,6.89856]
[1673451340713,28.13,15.56,15.544,39.66]
[1673451340939,20.0,15.559,15.545,20.0]
[1673451341132,19.14496728,15.567,15.545,20.0]
[1673451341343,48.18,15.569,15.546,46.59723]
[1673451341558,48.19,15.566,15.55,28.18]
[1673451341763,27.99,15.57,15.551,1.92]
[1673451341978,67.32496728,15.569,15.551,56.68]
[1673451342425,28.18,15.56,15.551,39.68]
[1673451342617,28.18,15.56,15.548,20.0]
[1673451342837,48.19,15.567,15.548,20.0]
[1673451343039,27.99,15.57,15.55,28.01]
[1673451343366,48.15,15.578,15.55,28.18]
[1673451343575,19.14496728,15.575,15.551,149.7454]
[1673451343809,20.0,15.577,15.552,20.96]
[1673451343980,48.17,15.574,15.552,38.92]
[1673451344191,28.18,15.57,15.553,39.37]
[1673451344425,140.76,15.57,15.553,39.37]
[1673451344624,67.32496728,15.569,15.552,39.37]
[1673451344821,20.0,15.568,15.552,39.37]
[1673451345035,39.14496728,15.568,15.551,110.0654]
[1673451345250,89.53599436,15.567,15.546,39.38]
[1673451345579,89.53599436,15.567,15.544,117.7704]
[1673451345580,20.0,15.565,15.552,6.89456]
[1673451345770,21.92,15.564,15.552,6.89456]
[1673451346102,89.26496728,15.564,15.552,6.89456]
[1673451346305,19.14496728,15.563,15.552,6.89456]
[1673451346519,21.92,15.562,15.552,6.89456]
[1673451346830,13.78912,15.55,15.545,20.0]
[1673451347049,13.78912,15.55,15.545,59.77]
[1673451347261,13.78912,15.55,15.543,39.78]
[1673451347576,13.78912,15.55,15.54,20.0]
[1673451348103,13.78912,15.55,15.541,59.78]
[1673451349547,13.78912,15.55,15.542,18.92]
[1673451349767,48.21,15.561,15.543,20.0]
[1673451349980,48.21,15.561,15.544,38.92]
[1673451350191,20.0,15.56,15.543,59.71]
[1673451350407,87.35496728,15.56,15.543,59.71]
[1673451350617,19.14496728,15.559,15.543,20.0]
[1673451350823,19.14496728,15.559,15.541,20.0]
[1673451350824,40.0,15.558,15.541,20.0]
[1673451351254,67.36496728,15.557,15.541,20.0]
[1673451351462,69.28496728,15.557,15.541,20.0]
[1673451351672,20.0,15.555,15.541,20.0]
[1673451351993,21.06496728,15.554,15.54,20.0]
[1673451352181,67.37496728,15.554,15.54,20.0]
[1673451352391,20.0,15.558,15.541,39.72]
[1673451352606,20.0,15.558,15.542,20.0]
[1673451352823,67.36496728,15.557,15.542,20.0]
[1673451353035,20.0,15.556,15.528,82.4869]
[1673451353355,39.14496728,15.556,15.537,0.32181]
[1673451353668,87.37496728,15.555,15.537,0.32181]
[1673451353863,37.0,15.554,15.537,0.32181]
[1673451354077,20.0,15.553,15.537,0.32181]
[1673451354403,2.81661214,15.552,15.537,0.32181]
[1673451354591,0.96,15.551,15.537,0.32181]
[1673451354815,0.96,15.55,15.537,0.32181]
[1673451355028,69.2,15.551,15.537,0.32181]
[1673451355029,87.38496728,15.551,15.537,0.32181]
[1673451355236,48.24,15.549,15.537,0.32181]
[1673451355448,20.0,15.548,15.537,0.32181]
[1673451355660,68.25,15.548,15.537,0.32181]
[1673451355876,48.24,15.55,15.537,0.32181]
[1673451356495,2.81661214,15.552,15.537,0.32181]
[1673451356718,2.81661214,15.552,15.538,25.72220117]
[1673451356923,2.81661214,15.552,15.537,0.32181]
[1673451357133,2.81661214,15.552,15.537,19.24181]
[1673451357356,2.81661214,15.552,15.538,20.0]
[1673451357555,2.81661214,15.552,15.54,20.0]
[1673451357977,2.81661214,15.552,15.541,17.0]
[1673451358604,2.81661214,15.552,15.542,1.92]
[1673451359235,48.19,15.565,15.543,20.0]
[1673451359461,48.2,15.563,15.544,157.16941]
[1673451359658,48.2,15.564,15.545,27.85767]
[1673451359869,67.32496728,15.569,15.546,17.96]
[1673451360285,39.14496728,15.568,15.547,46.84893456]
[1673451360495,39.14496728,15.568,15.547,7.599]
[1673451360706,87.33496728,15.567,15.548,17.0]
[1673451360930,87.33496728,15.567,15.549,20.0]
[1673451361124,67.33496728,15.567,15.55,17.0]
[1673451361334,48.19,15.567,15.551,1.92]
[1673451361571,48.19,15.567,15.551,13.2]
[1673451361761,19.14496728,15.567,15.552,17.0]
[1673451361968,140.79,15.56,15.546,15.38]
[1673451362189,140.79,15.56,15.544,112.3113]
[1673451362190,20.0,15.559,15.544,112.3113]
[1673451362397,68.21,15.559,15.544,112.3113]
[1673451362606,28.24,15.56,15.545,32.14]
[1673451362813,48.22,15.558,15.544,153.30776942]
[1673451363030,20.0,15.557,15.544,112.3113]
[1673451363229,68.22,15.557,15.544,112.3113]
[1673451363438,20.0,15.557,15.544,112.3113]
[1673451363651,48.22,15.556,15.544,112.3113]
[1673451363875,0.96,15.555,15.544,112.3113]
[1673451364090,0.96,15.554,15.544,112.3113]
[1673451364282,0.96,15.553,15.538,20.0]
[1673451364492,23.51,15.55,15.537,111.24791]
[1673451364708,40.0,15.549,15.537,111.24791]
[1673451364917,68.24,15.549,15.537,111.24791]
[1673451365338,20.0,15.549,15.537,111.24791]
[1673451365551,68.24,15.549,15.537,111.24791]
[1673451365764,1.92,15.548,15.537,111.24791]
[1673451366083,68.24,15.549,15.537,111.24791]
[1673451366277,20.0,15.549,15.537,111.24791]
[1673451366482,20.0,15.549,15.538,20.0]
[1673451366691,23.51,15.55,15.538,20.0]
[1673451367323,71.75,15.55,15.538,20.0]
[1673451367529,23.51,15.55,15.537,111.24791]
[1673451367758,20.0,15.549,15.537,111.24791]
[1673451367958,68.24,15.549,15.537,111.24791]
[1673451368589,41.06496728,15.548,15.537,111.24791]
[1673451368923,39.14496728,15.547,15.537,0.32181]
[1673451369148,1.92,15.546,15.537,0.32181]
[1673451369321,21.06496728,15.546,15.537,0.32181]
[1673451369538,20.0,15.544,15.537,0.32181]
[1673451369741,21.92,15.543,15.537,0.32181]
[1673451370089,70.18,15.543,15.537,0.32181]
[1673451370393,19.14496728,15.542,15.537,0.32181]
[1673451370604,41.92,15.541,15.537,0.32181]
[1673451370805,90.19,15.541,15.537,0.32181]
[1673451371129,19.14496728,15.54,15.525,79.7893636]
[1673451371341,0.86576019,15.535,15.525,79.7893636]
[1673451371654,19.14496728,15.534,15.525,79.7893636]
[1673451371867,1.92,15.533,15.525,79.7893636]
[1673451372055,1.92,15.533,15.525,76.7893636]
[1673451372264,48.3,15.532,15.525,76.7893636]
[1673451372498,1.92,15.531,15.525,76.7893636]
[1673451372689,21.92,15.531,15.525,76.7893636]
[1673451372896,48.3,15.53,15.525,76.7893636]
[1673451373106,21.92,15.529,15.525,76.7893636]
[1673451373443,20.0,15.528,15.52,25.736341]
[1673451373640,20.96,15.527,15.525,72.1176489]
[1673451373864,20.0,15.526,15.525,17.6045489]
[1673451374160,48.32,15.526,15.525,17.6045489]
[1673451374377,0.86576019,15.535,15.525,17.6045489]
[1673451376267,41.06496728,15.531,15.525,17.6045489]
[1673451376589,39.14496728,15.53,15.525,17.6045489]
[1673451376783,20.96,15.529,15.525,17.6045489]
[1673451376998,163.16529264,15.529,15.525,17.6045489]
[1673451377204,67.45496728,15.528,15.525,10.4459489]
[1673451377428,20.0,15.526,15.521,267.1269708]
[1673451377732,76.143343,15.525,15.516,101.69151136]
[1673451377951,62.6521945,15.52,15.516,101.69151136]
[1673451378161,20.0,15.519,15.515,89.23411146]
[1673451378376,20.0,15.519,15.49,200.0]
[1673451378377,51.77057899,15.513,15.502,101.39326229]
[1673451378596,140.63301819,15.511,15.503,105.4984869]
[1673451378802,192.06,15.51,15.503,108.15411749]
[1673451379009,6.82153,15.509,15.494,100.68374546]
[1673451379219,0.96,15.508,15.49,200.0]
[1673451379533,263.37633643,15.508,15.49,200.0]
[1673451379741,39.14496728,15.507,15.49,200.0]
[1673451379945,0.96,15.506,15.49,200.0]
[1673451380154,131.02920188,15.506,15.499,18.2359138]
[1673451380356,17.4578588,15.501,15.487,28.18405161]
[1673451380572,99.45105376,15.505,15.482,103.73697397]
[1673451380573,36.72006283,15.5,15.482,103.73697397]
[1673451380782,193.94136915,15.49,15.482,103.73697397]
[1673451380997,6.82153,15.489,15.482,100.53556501]
[1673451381208,78.32853283,15.489,15.482,105.85647898]
[1673451381409,29.89853283,15.488,15.481,106.5758812]
[1673451381617,66.90520711,15.488,15.481,106.5758812]
[1673451381843,69.50496728,15.487,15.481,5.0603599]
[1673451382046,19.14496728,15.487,15.481,5.0603599]
[1673451382265,54.31006857,15.488,15.481,5.0603599]
[1673451382472,25.862605,15.489,15.482,20.0]
[1673451383088,25.862605,15.489,15.479,121.41398242]
[1673451383305,25.862605,15.489,15.48,17.0]
[1673451384172,298.42239082,15.51,15.481,40.0]
[1673451384369,580.98907368,15.511,15.482,6.92574]
[1673451384576,25.809881,15.499,15.483,20.0]
[1673451384792,25.809881,15.499,15.484,25.84484]
[1673451385002,25.809881,15.499,15.481,135.4793]
[1673451385619,19.14496728,15.498,15.481,135.4793]
[1673451385834,25.809881,15.499,15.481,135.4793]
[1673451386045,48.41,15.497,15.481,135.4793]
[1673451386267,25.809881,15.499,15.481,135.4793]
[1673451386592,25.809881,15.499,15.482,6.92574]
[1673451387117,25.809881,15.499,15.483,20.0]
[1673451387432,25.809881,15.499,15.484,44.88484]
[1673451387634,25.809881,15.499,15.485,27.8844]
[1673451387950,25.809881,15.499,15.486,17.96]
[1673451388146,25.809881,15.499,15.487,7.8835]
[1673451388359,25.809881,15.499,15.488,44.88305]
[1673451388569,25.809881,15.499,15.489,7.88261]
[1673451388797,25.809881,15.499,15.49,24.88216]
[1673451388986,25.809881,15.499,15.491,6.92171]
[1673451389197,8.1e-05,15.499,15.493,20.0]
[1673451389406,8.1e-05,15.499,15.494,8.84037]
[1673451389721,8.1e-05,15.499,15.495,37.0]
[1673451390137,8.1e-05,15.499,15.496,1.92]
[1673451390370,8.1e-05,15.499,15.496,21.92]
[1673451391424,42.59765657,15.489,15.483,20.0]
[1673451391645,5.657e-05,15.489,15.488,26.92305]
[1673451391846,20.0,15.51,15.489,20.0]
[1673451392157,39.14496728,15.509,15.489,20.0]
[1673451392351,20.0,15.508,15.489,20.0]
[1673451392556,49.227839,15.51,15.489,20.0]
[1673451392876,49.227839,15.51,15.49,6.92216]
[1673451392877,25.807839,15.51,15.49,6.92216]
[1673451393523,68.37,15.509,15.489,20.0]
[1673451393738,87.51496728,15.509,15.483,20.0]
[1673451393930,97.23585164,15.487,15.48,114.8288]
[1673451394138,20.0,15.507,15.48,108.67018706]
[1673451394369,1.92,15.506,15.481,217.86826872]
[1673451394583,50.3,15.506,15.482,6.92574]
[1673451394783,48.38,15.506,15.482,6.92574]
[1673451395008,21.06496728,15.505,15.482,24.63668199]
[1673451395206,19.14496728,15.505,15.482,20.0]
[1673451395424,67.52496728,15.504,15.482,20.0]
[1673451395644,67.52496728,15.504,15.482,22.435]
[1673451395645,23.38,15.5,15.482,22.435]
[1673451395959,20.0,15.499,15.482,22.435]
[1673451396161,68.4,15.499,15.482,22.435]
[1673451396391,87.54496728,15.499,15.482,22.435]
[1673451396788,1.92,15.498,15.482,20.0]
[1673451397213,87.54496728,15.499,15.482,20.0]
[1673451397433,48.41,15.497,15.483,5.602]
[1673451397642,20.0,15.499,15.489,0.32281]
[1673451397643,48.4,15.499,15.489,0.32281]
[1673451397834,48.37,15.508,15.489,0.32281]
[1673451398044,48.37,15.508,15.49,6.496]
[1673451398276,67.51496728,15.509,15.491,0.96]
[1673451398600,48.37,15.507,15.49,6.496]
[1673451398910,48.37,15.508,15.491,18.92]
[1673451399216,48.37,15.509,15.492,40.0]
[1673451399425,25.807839,15.51,15.493,18.92]
[1673451399739,25.807839,15.51,15.494,20.0]
[1673451399953,25.807839,15.51,15.494,37.57]
[1673451400141,20.0,15.509,15.49,21.2]
[1673451400357,68.37,15.509,15.49,21.2]
[1673451400568,48.37,15.509,15.49,21.2]
[1673451401101,48.37,15.509,15.491,20.0]
[1673451401313,25.807839,15.51,15.491,37.71094199]
[1673451401523,25.807839,15.51,15.492,24.5]
[1673451401734,25.807839,15.51,15.493,21.92]
[1673451402156,25.807839,15.51,15.494,28.64]
[1673451402389,25.807839,15.51,15.495,1.92]
[1673451402884,25.807839,15.51,15.496,29.73]
[1673451403102,74.177839,15.51,15.497,1.92]
[1673451403317,48.34,15.518,15.497,1.92]
[1673451403510,48.34,15.519,15.498,33.61]
[1673451403723,48.36,15.512,15.499,1.92]
[1673451404152,48.34,15.519,15.5,38.8]
[1673451404363,19.14496728,15.516,15.501,1.92]
[1673451404565,48.34,15.519,15.501,18.92]
[1673451404566,25.792027,15.512,15.501,18.92]
[1673451404992,25.792027,15.512,15.502,44.09]
[1673451405214,225.85058844,15.511,15.503,20.0]
[1673451405521,25.792027,15.512,15.503,20.0]
[1673451405733,25.792027,15.512,15.504,66.64]
[1673451405945,25.792027,15.512,15.505,1.61379249]
[1673451406351,25.792027,15.512,15.503,20.0]
[1673451407197,25.792027,15.512,15.504,0.96]
[1673451407404,25.792027,15.512,15.502,43.50170592]
[1673451407610,48.36,15.511,15.502,43.50170592]
[1673451407824,48.36,15.511,15.5,20.0]
[1673451409522,25.792027,15.512,15.5,20.0]
[1673451409721,74.152027,15.512,15.5,20.0]
[1673451410357,25.792027,15.512,15.501,1.92]
[1673451410970,25.792027,15.512,15.501,18.92]
[1673451411407,25.792027,15.512,15.5,20.0]
[1673451412021,48.36,15.511,15.498,20.0]
[1673451412769,48.36,15.511,15.498,68.4]
[1673451412979,48.36,15.511,15.498,20.0]
[1673451413738,48.36,15.511,15.498,68.4]
[1673451413957,48.36,15.511,15.498,20.0]
[1673451414372,48.36,15.511,15.499,1.92]
[1673451415404,25.792027,15.512,15.499,1.92]
[1673451415620,25.792027,15.512,15.5,48.4]
[1673451415842,48.36,15.511,15.499,1.92]
[1673451416878,48.36,15.511,15.499,18.92]
[1673451417947,48.36,15.511,15.5,20.0]
[1673451418153,25.792027,15.512,15.501,1.92]
[1673451418474,48.34,15.519,15.501,1.92]
[1673451418685,48.34,15.517,15.501,21.92]
[1673451418899,48.34,15.519,15.503,20.0]
[1673451419092,48.33,15.522,15.504,23.41135955]
[1673451419296,48.33,15.522,15.504,71.79135955]
[1673451419508,48.33,15.522,15.505,20.0]
[1673451419716,74.105715,15.522,15.506,1.92]
[1673451419932,25.775715,15.522,15.507,20.0]
[1673451420140,25.775715,15.522,15.508,3.20259364]
[1673451420362,48.33,15.521,15.508,1.92]
[1673451421718,74.105715,15.522,15.51,20.0]
[1673451421932,25.775715,15.522,15.511,1.92]
[1673451422347,25.775715,15.522,15.511,18.92]
[1673451422990,25.775715,15.522,15.512,88.36]
[1673451423392,25.775715,15.522,15.51,20.0]
[1673451423393,48.33,15.521,15.51,20.0]
[1673451423607,48.33,15.521,15.507,20.0]
[1673451424031,23.64,15.52,15.507,20.0]
[1673451424451,48.34,15.519,15.507,20.0]
[1673451426040,48.33,15.521,15.507,20.0]
[1673451426437,25.775715,15.522,15.508,48.37]
[1673451426667,25.775715,15.522,15.509,20.0]
[1673451426890,25.775715,15.522,15.511,20.0]
[1673451427084,25.775715,15.522,15.512,21.92]
[1673451427912,25.775715,15.522,15.513,20.0]
[1673451428133,25.775715,15.522,15.515,20.0]
[1673451428347,25.775715,15.522,15.516,1.92]
[1673451428980,20.0,15.538,15.516,1.92]
[1673451429190,48.28,15.537,15.517,20.0]
[1673451429411,48.28,15.537,15.518,1.92]
[1673451429610,25.758308,15.538,15.519,1.2718757]
[1673451429821,48.28,15.536,15.52,1.92]
[1673451430032,48.28,15.537,15.52,1.92]
[1673451430252,48.29,15.535,15.517,68.34]
[1673451430462,48.28,15.536,15.517,20.0]
[1673451430785,48.29,15.534,15.517,20.0]
[1673451430982,48.28,15.537,15.517,20.0]
[1673451431189,48.28,15.537,15.518,68.34]
[1673451431407,25.758308,15.538,15.52,1.73438725]
[1673451431727,25.758308,15.538,15.522,20.0]
[1673451431936,25.758308,15.538,15.523,0.96]
[1673451432150,25.758308,15.538,15.524,0.96]
[1673451432341,25.758308,15.538,15.525,0.96]
[1673451432669,25.758308,15.538,15.526,0.96]
[1673451432997,25.758308,15.538,15.527,0.96]
[1673451433310,25.758308,15.538,15.528,0.96]
[1673451433499,25.758308,15.538,15.529,0.96]
[1673451433826,25.758308,15.538,15.53,20.96]
[1673451434023,25.758308,15.538,15.531,0.96]
[1673451434239,48.28,15.537,15.526,20.0]
[1673451434443,48.28,15.537,15.52,114.7449]
[1673451434660,48.28,15.537,15.516,111.8827]
[1673451434872,67.42496728,15.537,15.516,111.8827]
[1673451435079,48.28,15.537,15.516,111.8827]
[1673451435806,48.28,15.537,15.514,20.0]
[1673451436020,23.41,15.53,15.514,20.0]
[1673451436236,23.41,15.53,15.513,20.0]
[1673451436237,20.0,15.529,15.513,20.0]
[1673451436450,87.45496728,15.529,15.513,20.0]
[1673451436766,20.0,15.527,15.505,20.0]
[1673451436972,0.96,15.526,15.505,20.0]
[1673451437188,67.46496728,15.526,15.505,20.0]
[1673451437393,19.14496728,15.525,15.505,20.0]
[1673451437799,48.32,15.524,15.505,20.0]
[1673451438223,19.14496728,15.523,15.505,20.0]
[1673451438649,48.33,15.522,15.505,20.0]
[1673451439909,48.33,15.522,15.508,18.92]
[1673451440331,48.33,15.522,15.505,20.0]
[1673451440332,23.64,15.52,15.49,23.64]
[1673451440537,23.64,15.52,15.494,108.6546]
[1673451440747,20.0,15.518,15.495,20.0]
[1673451440957,20.0,15.517,15.495,68.41]
[1673451441184,1.92,15.516,15.495,20.0]
[1673451441400,21.06496728,15.516,15.495,20.0]
[1673451441606,67.49496728,15.515,15.495,20.0]
[1673451442018,48.35,15.515,15.495,68.41]
[1673451442530,48.35,15.516,15.495,68.41]
[1673451442744,48.35,15.514,15.495,20.0]
[1673451442955,67.49496728,15.515,15.495,20.0]
[1673451443164,48.36,15.513,15.495,20.0]
[1673451443388,1.92,15.512,15.495,20.0]
[1673451443580,49.32,15.512,15.495,20.0]
[1673451443803,0.96,15.511,15.495,20.0]
[1673451444017,118.2,15.51,15.491,20.0]
[1673451444242,20.0,15.509,15.491,20.0]
[1673451444443,68.37,15.509,15.491,20.0]
[1673451445815,48.37,15.509,15.491,20.0]
[1673451446142,48.37,15.509,15.492,48.42]
[1673451446352,20.0,15.508,15.493,20.0]
[1673451446552,39.14496728,15.508,15.493,20.0]
[1673451446869,48.37,15.507,15.493,20.0]
[1673451447696,48.37,15.507,15.494,16.30249563]
[1673451447905,48.37,15.51,15.495,20.0]
[1673451448124,19.14496728,15.513,15.495,20.0]
[1673451448342,48.37,15.509,15.495,20.0]
[1673451448538,48.36,15.512,15.495,20.0]
[1673451448748,48.37,15.508,15.495,20.0]
[1673451448954,48.36,15.511,15.495,20.0]
[1673451449168,48.37,15.507,15.495,20.0]
[1673451449386,48.36,15.511,15.495,20.0]
[1673451449809,19.14496728,15.517,15.495,20.0]
[1673451450018,72.01,15.51,15.495,20.0]
[1673451450226,48.35,15.516,15.496,50.33]
[1673451450629,67.49496728,15.516,15.497,20.0]
[1673451450844,48.35,15.516,15.498,18.92]
[1673451451055,48.32,15.523,15.498,67.32]
[1673451451264,48.31,15.527,15.501,1.54205342]
[1673451451481,23.41,15.53,15.502,126.8596]
[1673451451689,48.32,15.526,15.503,57.0]
[1673451451904,48.31,15.529,15.505,1.36799466]
[1673451452114,48.32,15.525,15.506,0.96]
[1673451452327,48.31,15.528,15.508,1.46127535]
[1673451452523,48.31,15.528,15.507,20.96]
[1673451452524,48.32,15.524,15.51,1.46127535]
[1673451452730,48.31,15.527,15.509,1.53940702]
[1673451452955,48.31,15.529,15.511,0.96]
[1673451453488,20.0,15.536,15.513,20.0]
[1673451453703,48.31,15.528,15.514,1.92]
[1673451453897,42.64496728,15.53,15.515,0.96]
[1673451454107,48.31,15.527,15.514,0.96]
[1673451454314,48.31,15.527,15.512,0.96]
[1673451454315,68.31,15.529,15.513,0.96]
[1673451454636,48.32,15.526,15.513,0.96]
[1673451454853,48.31,15.528,15.514,0.96]
[1673451455070,48.32,15.525,15.514,0.96]
[1673451455287,48.31,15.527,15.514,0.96]
[1673451455487,48.31,15.528,15.514,0.96]
[1673451455692,20.0,15.527,15.514,0.96]
[1673451455920,20.0,15.527,15.509,20.0]
[1673451456120,48.32,15.526,15.509,20.0]
[1673451457593,67.46496728,15.526,15.509,20.0]
[1673451458331,67.46496728,15.526,15.51,17.96]
[1673451459284,23.6,15.52,15.497,20.0]
[1673451459598,23.6,15.52,15.497,128.5541]
[1673451459790,87.48496728,15.519,15.497,176.9641]
[1673451459998,68.34,15.519,15.498,16.30249563]
[1673451460221,68.34,15.519,15.497,176.9641]
[1673451460749,48.34,15.519,15.497,384.36659563]
[1673451460944,48.33,15.521,15.498,6.91859]
[1673451461159,48.32,15.524,15.498,6.91859]
[1673451461471,71.81,15.52,15.5,20.0]
[1673451461680,20.0,15.519,15.5,20.0]
[1673451461995,87.48496728,15.519,15.5,20.0]
[1673451462210,68.34,15.519,15.5,20.0]